bitfinex/quotes_SOLUSD_20241101
["timestamp","ask_amount","ask_price","bid_price","bid_amount"]
[1730451895649,16.32707415,166.05,165.99,16.32887415]
[1730451895847,16.32707415,166.05,165.99,10.30457415]
[1730451896050,10.30457415,166.04,165.99,10.30457415]
[1730451897167,16.32727415,166.04,165.99,10.30457415]
[1730451897848,6.0219,166.06,166.01,10.30457415]
[1730451898053,16.32647415,166.06,166.0,10.30457415]
[1730451898352,10.30457415,166.04,165.99,10.30457415]
[1730451899074,16.32727415,166.04,165.99,10.30457415]
[1730451900247,4.44602796,166.03,166.0,10.30457415]
[1730451900446,10.30457415,166.05,166.0,10.30457415]
[1730451901242,10.30457415,166.05,166.0,16.32857415]
[1730451901447,6.0211,166.08,166.0,16.32857415]
[1730451901448,10.30457415,166.06,166.01,10.30457415]
[1730451901666,10.30457415,166.05,166.0,16.32857415]
[1730451901870,10.30457415,166.04,165.99,10.30457415]
[1730451902166,16.32737415,166.04,165.99,10.30457415]
[1730451902468,16.32737415,166.04,165.98,31.51656415]
[1730451902653,16.32737415,166.04,165.99,10.30457415]
[1730451902868,6.0228,166.04,166.0,10.30457415]
[1730451904359,10.30457415,166.07,166.01,10.30457415]
[1730451904666,10.30457415,166.07,166.02,10.30457415]
[1730451904969,10.30457415,166.06,166.01,10.30457415]
[1730451905560,10.30457415,166.04,165.98,16.32927415]
[1730451906846,16.32727415,166.04,165.98,16.32927415]
[1730451907051,16.32727415,166.04,165.99,10.30457415]
[1730451908264,10.30457415,166.05,166.0,10.30457415]
[1730451909486,6.0224,166.05,166.01,10.30457415]
[1730451911659,10.30457415,166.03,165.99,15.0611]
[1730451912562,10.30457415,166.04,165.99,21.0855]
[1730451912764,10.30457415,166.04,165.99,31.39007415]
[1730451912961,6.0224,166.05,166.02,10.30457415]
[1730451913255,6.0224,166.05,166.01,10.30457415]
[1730451913756,10.30457415,166.07,166.02,0.25098]
[1730451914071,6.0215,166.07,166.02,16.57885415]
[1730451914567,10.30457415,166.08,166.02,16.57885415]
[1730451914770,16.93721085,166.09,166.03,10.30457415]
[1730451915768,0.6115367,166.09,166.05,10.30457415]
[1730451915972,0.6115367,166.09,166.06,10.30457415]
[1730451917374,0.6115367,166.09,166.07,10.30457415]
[1730451919657,0.6115367,166.09,166.06,16.32637415]
[1730451919856,0.6115367,166.09,166.04,30.266064]
[1730451919857,16.93691085,166.09,166.05,0.12549]
[1730451922081,6.6323367,166.09,166.05,0.12549]
[1730451923273,16.93691085,166.09,166.05,0.12549]
[1730451923671,6.6323367,166.09,166.05,0.12549]
[1730451923977,6.6323367,166.09,166.06,10.30457415]
[1730451924151,0.6115367,166.09,166.06,10.30457415]
[1730451924763,0.6115367,166.09,166.07,10.30457415]
[1730451924968,0.6115367,166.09,166.06,10.30457415]
[1730451925958,0.6115367,166.09,166.07,10.30457415]
[1730451926969,0.6115367,166.09,166.06,16.32647415]
[1730451927479,0.6115367,166.09,166.05,10.43006415]
[1730451927658,10.91611085,166.09,166.05,0.12549]
[1730451928961,0.6115367,166.09,166.05,10.43006415]
[1730451929574,0.6115367,166.09,166.05,10.30457415]
[1730451929774,16.93701085,166.09,166.04,16.45246415]
[1730451930372,10.30457415,166.07,166.02,25.44207415]
[1730451930957,16.93701085,166.09,166.03,10.30457415]
[1730451931981,16.93701085,166.09,166.04,10.30457415]
[1730451932768,0.6115367,166.09,166.05,10.30457415]
[1730451932956,0.6115367,166.09,166.06,10.30457415]
[1730451936272,0.6115367,166.09,166.05,16.32657415]
[1730451936467,16.93691085,166.09,166.04,10.43006415]
[1730451937457,16.93691085,166.09,166.04,16.45266415]
[1730451939175,16.93691085,166.09,166.04,16.32717415]
[1730451943287,0.6115367,166.09,166.05,16.32657415]
[1730451943583,0.6115367,166.09,166.06,10.55555415]
[1730451944659,0.6115367,166.09,166.07,10.30457415]
[1730451944862,0.6115367,166.09,166.06,6.27278]
[1730451944863,0.6115367,166.09,166.08,10.30457415]
[1730451945083,0.6115367,166.09,166.08,10.55555415]
[1730451946777,0.6115367,166.09,166.08,16.57665415]
[1730451948280,0.6115367,166.09,166.08,6.27208]
[1730451948482,0.6115367,166.09,166.08,16.57665415]
[1730451949204,0.6115367,166.09,166.08,10.30457415]
[1730451949401,0.6115367,166.09,166.06,31.38077415]
[1730451949617,0.6115367,166.09,166.06,21.0762]
[1730451949795,0.6115367,166.09,166.05,10.30457415]
[1730451950006,6.6323367,166.09,166.05,10.30457415]
[1730451952297,6.6323367,166.09,166.04,16.32717415]
[1730451952511,6.6323367,166.09,166.05,10.30457415]
[1730451954873,0.6115367,166.09,166.05,10.30457415]
[1730451956083,0.6115367,166.09,166.04,10.30457415]
[1730451956280,0.6115367,166.09,166.05,10.30457415]
[1730451958391,0.6115367,166.09,166.05,16.32657415]
[1730451959293,0.6115367,166.09,166.05,6.022]
[1730451960195,10.91611085,166.09,166.03,25.36207415]
[1730451960386,10.30457415,166.07,166.02,10.30457415]
[1730451960592,10.30457415,166.07,166.02,16.32777415]
[1730451961114,10.30457415,166.07,166.02,10.30457415]
[1730451961299,10.30457415,166.06,166.01,10.30457415]
[1730451962098,16.32657415,166.06,166.01,10.30457415]
[1730451962303,10.30457415,166.05,166.0,37.66936279]
[1730451962690,10.30457415,166.03,166.0,27.36478864]
[1730451962890,10.30457415,166.04,166.0,21.0839]
[1730451963609,16.32687415,166.05,166.0,21.0839]
[1730451963980,6.0217,166.07,166.02,10.30457415]
[1730451964191,16.32577415,166.08,166.03,10.30457415]
[1730451965192,10.30457415,166.06,166.01,10.30457415]
[1730451965507,6.0212,166.08,166.0,25.36467415]
[1730451965508,10.30457415,166.05,166.0,25.36467415]
[1730451965706,10.30457415,166.04,166.0,15.0601]
[1730451966085,10.30457415,166.03,165.98,6.0248]
[1730451966908,10.30457415,166.04,165.99,10.30457415]
[1730451967491,16.32717415,166.05,165.99,31.38987415]
[1730451967693,16.32717415,166.05,166.0,10.30457415]
[1730451968002,10.30457415,166.05,166.0,10.30457415]
[1730451968512,10.30457415,166.05,165.99,21.0853]
[1730451968689,6.0219,166.06,165.99,21.0853]
[1730451968690,10.30457415,166.03,165.99,21.0853]
[1730451969989,16.32727415,166.04,165.99,31.38987415]
[1730451970613,10.30457415,166.03,165.99,21.0853]
[1730451971205,10.30457415,166.02,165.97,6.0249]
[1730451972309,16.32787415,166.02,165.97,6.0249]
[1730451973007,16.32787415,166.02,165.97,16.32947415]
[1730451973404,10.30457415,166.03,165.97,16.32947415]
[1730451974912,6.0233,166.02,165.97,16.32947415]
[1730451975120,6.0233,166.02,165.98,10.30457415]
[1730451975616,6.0224,166.05,166.01,10.30457415]
[1730451975913,6.0219,166.06,166.02,10.30457415]
[1730451976610,6.0219,166.06,166.01,10.30457415]
[1730451977415,6.0219,166.06,166.0,16.32837415]
[1730451977416,10.30457415,166.05,166.0,16.32837415]
[1730451977712,16.32677415,166.05,166.0,10.30457415]
[1730451977913,6.0222,166.05,166.01,10.30457415]
[1730451979395,10.91611085,166.09,166.04,10.30457415]
[1730451979599,10.91611085,166.09,166.03,10.43006415]
[1730451979798,16.93701085,166.09,166.03,10.43006415]
[1730451980015,10.91611085,166.09,166.03,10.43006415]
[1730451980199,0.6115367,166.09,166.05,10.30457415]
[1730451980704,0.6115367,166.09,166.07,10.30457415]
[1730451981796,0.6115367,166.09,166.08,10.30457415]
[1730451982016,0.6115367,166.09,166.08,10.55555415]
[1730451982622,0.6115367,166.09,166.08,0.25098]
[1730451983120,0.6115367,166.09,166.08,16.57665415]
[1730451985018,0.6115367,166.09,166.07,25.35837415]
[1730451985219,0.6115367,166.09,166.05,10.30457415]
[1730451986722,0.6115367,166.09,166.05,16.32677415]
[1730451987809,0.6115367,166.09,166.05,10.30457415]
[1730451989816,10.30457415,166.06,166.01,10.30457415]
[1730451990020,10.30457415,166.06,166.0,31.38847415]
[1730451990412,10.30457415,166.07,166.01,10.30457415]
[1730451991229,10.30457415,166.05,166.01,6.0236]
[1730451991432,10.30457415,166.05,166.0,25.36447415]
[1730451991720,10.30457415,166.06,166.0,31.38847415]
[1730451992117,16.32627415,166.07,166.01,10.30457415]
[1730451992310,6.0217,166.07,166.02,10.30457415]
[1730451993126,16.32627415,166.07,166.01,16.57895415]
[1730451994299,10.30457415,166.06,166.01,16.57895415]
[1730451997627,10.30457415,166.06,166.01,6.27438]
[1730451999816,16.32657415,166.06,166.01,6.27438]
[1730452000724,16.32657415,166.06,166.0,31.38847415]
[1730452001912,16.32657415,166.06,166.0,21.0839]
[1730452002119,0.6115367,166.09,166.0,21.0839]
[1730452002120,10.30457415,166.04,166.0,21.0839]
[1730452004332,10.30457415,166.05,166.0,21.0839]
[1730452004532,10.30457415,166.05,166.0,31.38847415]
[1730452004708,6.0211,166.08,166.03,10.30457415]
[1730452005025,16.32567415,166.08,166.02,10.30457415]
[1730452005428,16.32567415,166.08,166.02,16.32767415]
[1730452006013,10.30457415,166.07,166.02,16.32767415]
[1730452006424,10.30457415,166.07,166.02,6.0231]
[1730452006631,10.30457415,166.06,166.02,6.0231]
[1730452007008,10.30457415,166.05,166.02,6.0231]
[1730452007322,10.30457415,166.06,166.02,6.0231]
[1730452009612,10.30457415,166.07,166.02,6.0231]
[1730452010225,10.30457415,166.07,166.02,16.32767415]
[1730452010614,16.32567415,166.08,166.02,16.32767415]
[1730452012334,16.32627415,166.07,166.02,16.32767415]
[1730452012628,6.0217,166.07,166.02,16.32767415]
[1730452016715,10.30457415,166.07,166.02,6.0231]
[1730452018040,16.32637415,166.07,166.02,6.0231]
[1730452019029,6.0218,166.07,166.02,16.32767415]
[1730452021029,0.6115367,166.09,166.02,16.32767415]
[1730452021030,10.91611085,166.09,166.04,10.30457415]
[1730452021329,16.93721085,166.09,166.04,10.30457415]
[1730452021535,0.6115367,166.09,166.06,10.30457415]
[1730452021907,6.6325367,166.09,166.05,10.30457415]
[1730452022111,6.6325367,166.09,166.04,10.30457415]
[1730452022309,16.93711085,166.09,166.04,10.30457415]
[1730452027420,6.6325367,166.09,166.05,10.30457415]
[1730452027632,0.6115367,166.09,166.07,10.30457415]
[1730452028323,0.6115367,166.09,166.06,10.30457415]
[1730452029446,0.6115367,166.09,166.07,10.30457415]
[1730452029624,0.6115367,166.09,166.08,10.30457415]
[1730452030340,0.6115367,166.09,166.07,10.30457415]
[1730452032928,0.6115367,166.09,166.08,10.30457415]
[1730452034345,0.6115367,166.09,166.08,16.32567415]
[1730452034644,0.6115367,166.09,166.08,10.30457415]
[1730452035949,6.6323367,166.09,166.05,25.36027415]
[1730452036252,6.6323367,166.09,166.04,10.30457415]
[1730452037045,16.93691085,166.09,166.04,10.30457415]
[1730452037239,16.93691085,166.09,166.03,31.38497415]
[1730452038447,6.6323367,166.09,166.04,10.30457415]
[1730452039556,16.93691085,166.09,166.04,10.30457415]
[1730452039759,6.6323367,166.09,166.04,10.30457415]
[1730452039954,16.93691085,166.09,166.04,10.30457415]
[1730452041834,6.6323367,166.09,166.04,10.30457415]
[1730452042363,6.6323367,166.09,166.03,21.0804]
[1730452042364,16.93691085,166.09,166.03,25.36207415]
[1730452042737,16.93691085,166.09,166.03,31.38507415]
[1730452043656,16.93691085,166.09,166.03,25.36207415]
[1730452043839,10.30457415,166.08,166.02,10.30457415]
[1730452044041,10.30457415,166.06,166.01,16.58418718]
[1730452044239,10.30457415,166.06,166.01,10.30457415]
[1730452044458,10.30457415,166.06,166.0,31.38857415]
[1730452044952,10.30457415,166.06,165.99,6.27606364]
[1730452044953,10.30457415,166.04,165.99,16.58063779]
[1730452045467,10.30457415,166.04,165.99,6.27606364]
[1730452045845,16.32737415,166.04,165.99,6.27606364]
[1730452046044,16.32737415,166.04,165.99,16.58063779]
[1730452046460,6.0228,166.04,165.99,16.58063779]
[1730452046666,6.0228,166.04,165.99,10.30457415]
[1730452046861,6.0228,166.04,166.0,10.30457415]
[1730452047168,16.32597415,166.08,166.02,10.30457415]
[1730452047354,6.0214,166.08,166.03,10.30457415]
[1730452048361,10.30457415,166.07,166.02,10.30457415]
[1730452049441,16.32617415,166.07,166.02,10.30457415]
[1730452050265,6.0216,166.07,166.02,10.30457415]
[1730452050442,6.0211,166.08,166.03,10.30457415]
[1730452051461,16.32567415,166.08,166.03,10.30457415]
[1730452052251,10.30457415,166.07,166.02,10.30457415]
[1730452053161,6.0211,166.08,166.03,10.30457415]
[1730452053556,10.30457415,166.07,166.01,10.30457415]
[1730452053767,10.30457415,166.06,166.0,16.32857415]
[1730452053971,10.30457415,166.07,166.01,10.30457415]
[1730452054648,6.0219,166.06,166.01,10.30457415]
[1730452055474,6.0211,166.08,166.04,10.30457415]
[1730452055660,6.6325367,166.09,166.05,10.30457415]
[1730452057071,16.93711085,166.09,166.04,10.30457415]
[1730452058270,10.30457415,166.08,166.03,16.32737415]
[1730452058473,10.30457415,166.08,166.03,6.0228]
[1730452059060,10.30457415,166.08,166.03,16.32737415]
[1730452059245,6.6325367,166.09,166.04,10.30457415]
[1730452059449,16.93711085,166.09,166.04,10.30457415]
[1730452059672,6.6325367,166.09,166.04,10.30457415]
[1730452063349,10.30457415,166.08,166.03,10.30457415]
[1730452064674,16.32577415,166.08,166.03,10.30457415]
[1730452064875,6.0212,166.08,166.03,10.30457415]
[1730452065075,6.0212,166.08,166.02,10.30457415]
[1730452065076,16.32577415,166.08,166.02,10.30457415]
[1730452065781,16.32577415,166.08,166.03,10.30457415]
[1730452066162,6.0212,166.08,166.03,10.30457415]
[1730452071062,16.32577415,166.08,166.03,10.30457415]
[1730452071262,16.32577415,166.08,166.02,10.30457415]
[1730452072981,16.32577415,166.08,166.02,16.32777415]
[1730452073186,16.32577415,166.08,166.03,10.30457415]
[1730452074283,6.0212,166.08,166.03,10.30457415]
[1730452074773,6.0212,166.08,166.04,10.30457415]
[1730452075764,0.6115367,166.09,166.06,10.30457415]
[1730452076589,0.6115367,166.09,166.07,10.30457415]
[1730452076788,0.6115367,166.09,166.08,10.30457415]
[1730452078671,0.6115367,166.09,166.08,10.55555415]
[1730452078867,0.6115367,166.09,166.08,16.57665415]
[1730452080577,0.6115367,166.09,166.08,10.30457415]
[1730452087084,0.6115367,166.09,166.08,16.57665415]
[1730452089997,0.6115367,166.09,166.08,10.30457415]
[1730452091781,0.6115367,166.09,166.08,16.32567415]
[1730452093202,0.6115367,166.09,166.08,16.57665415]
[1730452093388,0.6115367,166.09,166.08,10.30457415]
[1730452094982,6.6323367,166.09,166.07,10.30457415]
[1730452095178,6.6323367,166.09,166.05,10.30457415]
[1730452095395,10.30457415,166.06,166.01,25.36297415]
[1730452095584,10.30457415,166.08,166.02,10.30457415]
[1730452095908,10.30457415,166.08,166.03,10.30457415]
[1730452096585,6.6323367,166.09,166.04,10.30457415]
[1730452097487,16.93691085,166.09,166.04,10.30457415]
[1730452097701,10.30457415,166.07,166.02,16.32777415]
[1730452097903,10.30457415,166.06,166.01,25.36297415]
[1730452098300,10.30457415,166.06,166.01,15.0584]
[1730452099292,6.0222,166.05,166.01,15.0584]
[1730452100003,6.0222,166.05,166.01,10.30457415]
[1730452100698,6.0222,166.05,166.02,10.30457415]
[1730452101099,6.0219,166.06,166.02,10.30457415]
[1730452101889,10.30457415,166.08,166.05,10.30457415]
[1730452101890,6.0215,166.08,166.05,10.30457415]
[1730452102206,0.6115367,166.09,166.05,10.30457415]
[1730452102398,6.6324367,166.09,166.05,10.30457415]
[1730452102801,6.6324367,166.09,166.04,10.30457415]
[1730452103116,16.93701085,166.09,166.04,10.30457415]
[1730452103493,16.93701085,166.09,166.03,10.30457415]
[1730452103688,10.30457415,166.07,166.02,10.30457415]
[1730452103997,6.6324367,166.09,166.01,10.30457415]
[1730452103998,10.30457415,166.06,166.01,10.30457415]
[1730452104191,6.6324367,166.09,165.99,15.0602]
[1730452104192,10.30457415,166.04,165.99,10.30457415]
[1730452105597,16.32747415,166.04,165.99,10.30457415]
[1730452106486,6.0229,166.04,165.99,10.30457415]
[1730452109088,6.0229,166.04,166.0,10.30457415]
[1730452109290,6.0229,166.04,165.97,6.0248]
[1730452109291,6.0229,166.04,166.01,10.30457415]
[1730452109715,6.0222,166.05,166.01,10.30457415]
[1730452110698,6.0222,166.05,166.0,10.30457415]
[1730452111018,6.0222,166.05,166.01,10.30457415]
[1730452112610,6.0222,166.05,166.0,10.30457415]
[1730452112806,10.30457415,166.05,166.0,10.30457415]
[1730452113508,16.32647415,166.06,166.01,10.30457415]
[1730452114903,6.0219,166.06,166.02,10.30457415]
[1730452115107,6.0219,166.06,166.03,10.30457415]
[1730452116003,6.0215,166.07,166.03,10.30457415]
[1730452116800,16.32607415,166.07,166.02,10.30457415]
[1730452117823,10.30457415,166.06,166.02,10.30457415]
[1730452120028,6.0222,166.05,166.02,10.30457415]
[1730452121314,6.0222,166.05,166.01,10.30457415]
[1730452125620,16.32567415,166.08,166.03,10.30457415]
[1730452128432,0.6115367,166.09,166.05,10.30457415]
[1730452129503,6.6323367,166.09,166.05,10.30457415]
[1730452130669,6.6323367,166.09,166.04,10.30457415]
[1730452130670,16.93691085,166.09,166.04,10.30457415]
[1730452130844,10.30457415,166.08,166.03,10.30457415]
[1730452132155,6.0215,166.07,166.03,10.30457415]
[1730452132752,6.0215,166.07,166.04,10.30457415]
[1730452132928,10.91611085,166.09,166.04,10.30457415]
[1730452132929,6.0211,166.08,166.04,10.30457415]
[1730452136133,6.0211,166.08,166.03,10.30457415]
[1730452138117,6.0211,166.08,166.04,10.30457415]
[1730452138321,16.32567415,166.08,166.02,10.30457415]
[1730452139520,10.30457415,166.07,166.02,10.30457415]
[1730452139843,10.30457415,166.07,166.01,25.36387415]
[1730452140136,10.30457415,166.07,166.02,10.30457415]
[1730452140741,6.0211,166.08,166.03,10.30457415]
[1730452141036,6.0211,166.08,166.05,10.30457415]
[1730452142660,6.6323367,166.09,166.06,10.30457415]
[1730452146238,6.6323367,166.09,166.02,15.18389]
[1730452146239,10.30457415,166.08,166.03,10.30457415]
[1730452146433,10.30457415,166.08,166.02,25.36297415]
[1730452146825,10.30457415,166.08,166.03,10.30457415]
[1730452147230,16.93691085,166.09,166.04,10.30457415]
[1730452147728,6.6323367,166.09,166.05,10.30457415]
[1730452148351,6.6323367,166.09,166.04,10.30457415]
[1730452148729,16.93691085,166.09,166.04,10.30457415]
[1730452150450,6.6323367,166.09,166.04,10.30457415]
[1730452151054,16.93691085,166.09,166.04,10.30457415]
[1730452152659,6.6323367,166.09,166.04,10.30457415]
[1730452153843,6.6323367,166.09,166.05,10.30457415]
[1730452154454,6.6323367,166.09,166.04,10.30457415]
[1730452154656,6.6323367,166.09,166.06,10.30457415]
[1730452155255,6.6323367,166.09,166.05,10.30457415]
[1730452157840,6.6323367,166.09,166.04,16.32697415]
[1730452160442,6.6323367,166.09,166.03,0.12549]
[1730452160443,0.6115367,166.09,166.06,10.30457415]
[1730452161372,6.6323367,166.09,166.06,10.30457415]
[1730452171658,0.6115367,166.09,166.06,10.30457415]
[1730452171841,0.6115367,166.09,166.08,10.30457415]
[1730452175268,0.6115367,166.09,166.07,10.30457415]
[1730452177168,0.6115367,166.09,166.08,10.30457415]
[1730452181454,0.6115367,166.09,166.07,10.30457415]
[1730452182074,0.6115367,166.09,166.06,10.30457415]
[1730452182274,0.6115367,166.09,166.05,31.38157415]
[1730452188959,0.6115367,166.09,166.06,10.30457415]
[1730452189349,0.6115367,166.09,166.05,25.35967415]
[1730452190456,0.6115367,166.09,166.05,31.38187415]
[1730452191351,0.6115367,166.09,166.06,10.30457415]
[1730452204591,0.6115367,166.09,166.05,25.35967415]
[1730452205883,16.93721085,166.09,166.04,10.30457415]
[1730452206074,10.30457415,166.08,166.03,10.30457415]
[1730452206879,16.93721085,166.09,166.04,10.30457415]
[1730452209692,10.30457415,166.08,166.03,10.30457415]
[1730452210685,21.6846367,166.09,166.0,10.30457415]
[1730452211001,10.30457415,166.04,165.99,10.30457415]
[1730452211167,10.30457415,166.05,166.0,10.30457415]
[1730452211688,6.0226,166.04,166.0,10.30457415]
[1730452212072,10.30457415,166.06,166.01,10.30457415]
[1730452213569,6.0222,166.05,166.01,10.30457415]
[1730452214867,10.30457415,166.07,166.01,10.30457415]
[1730452215072,6.0219,166.06,166.01,10.30457415]
[1730452215782,6.0219,166.06,166.02,10.30457415]
[1730452216095,6.0215,166.07,166.02,10.30457415]
[1730452217488,6.0215,166.07,166.05,10.30457415]
[1730452217696,6.6326367,166.09,166.05,10.30457415]
[1730452219697,6.6326367,166.09,166.05,26.54447415]
[1730452219882,6.6326367,166.09,166.06,10.30457415]
[1730452220076,0.6115367,166.09,166.08,10.30457415]
[1730452221790,0.6115367,166.09,166.08,16.57665415]
[1730452221992,0.6115367,166.09,166.08,40.47902815]
[1730452226196,0.6115367,166.09,166.08,63.56302815]
[1730452228596,16.32097415,166.21,166.09,44.153354]
[1730452228793,16.32097415,166.21,166.16,10.30457415]
[1730452229792,16.32097415,166.21,166.16,16.32277415]
[1730452229988,6.0164,166.21,166.17,10.30457415]
[1730452230197,6.0164,166.21,166.19,10.30457415]
[1730452230501,6.0164,166.21,166.18,10.30457415]
[1730452231395,6.0161,166.22,166.18,10.30457415]
[1730452231603,6.0161,166.22,166.19,10.30457415]
[1730452232405,6.0157,166.23,166.19,10.30457415]
[1730452233108,16.32027415,166.23,166.18,10.30457415]
[1730452234007,10.30457415,166.24,166.18,10.30457415]
[1730452234513,16.31957415,166.25,166.2,10.30457415]
[1730452235009,10.30457415,166.24,166.19,10.30457415]
[1730452235189,6.0157,166.23,166.19,10.30457415]
[1730452235502,6.0157,166.23,166.15,31.453]
[1730452235503,6.0157,166.23,166.2,10.30457415]
[1730452236206,6.0157,166.23,166.19,10.30457415]
[1730452236504,16.32027415,166.23,166.18,10.30457415]
[1730452237086,6.0157,166.23,166.19,10.30457415]
[1730452240399,6.0157,166.23,166.2,10.30457415]
[1730452241624,6.0153,166.24,166.2,10.30457415]
[1730452241793,6.0153,166.24,166.21,10.30457415]
[1730452241994,10.91611085,166.26,166.18,6.0175]
[1730452241995,6.6263367,166.26,166.23,10.30457415]
[1730452242314,6.6263367,166.26,166.22,10.30457415]
[1730452242613,16.93091085,166.26,166.21,10.30457415]
[1730452243412,10.30457415,166.25,166.2,10.30457415]
[1730452243710,10.30457415,166.24,166.19,10.30457415]
[1730452244412,10.30457415,166.22,166.17,10.30457415]
[1730452245324,10.30457415,166.23,166.18,10.30457415]
[1730452246598,16.32067415,166.22,166.17,10.30457415]
[1730452247726,15.7481367,166.26,166.16,10.30457415]
[1730452247727,10.30457415,166.21,166.16,10.30457415]
[1730452249523,10.30457415,166.22,166.17,10.30457415]
[1730452250837,6.0164,166.21,166.17,10.30457415]
[1730452256732,16.32027415,166.23,166.18,10.30457415]
[1730452257518,6.0157,166.23,166.19,10.30457415]
[1730452260311,6.015,166.25,166.21,10.30457415]
[1730452260512,6.6261367,166.26,166.22,10.30457415]
[1730452260833,6.6261367,166.26,166.21,10.30457415]
[1730452261139,6.6261367,166.26,166.22,10.30457415]
[1730452261513,6.6261367,166.26,166.21,10.30457415]
[1730452262118,6.6261367,166.26,166.22,10.30457415]
[1730452262424,6.6261367,166.26,166.21,10.30457415]
[1730452263439,6.6261367,166.26,166.22,10.30457415]
[1730452263630,0.6115367,166.26,166.23,10.30457415]
[1730452264635,16.31957415,166.25,166.21,10.30457415]
[1730452265035,16.31957415,166.25,166.2,10.30457415]
[1730452265423,10.30457415,166.24,166.19,10.30457415]
[1730452265620,0.6115367,166.26,166.18,10.30457415]
[1730452265621,16.32027415,166.23,166.18,10.30457415]
[1730452265825,16.32027415,166.23,166.16,30.8725]
[1730452265826,10.30457415,166.22,166.17,10.30457415]
[1730452266348,10.30457415,166.21,166.16,10.30457415]
[1730452266543,16.32027415,166.23,166.18,10.30457415]
[1730452267437,6.0157,166.23,166.2,10.30457415]
[1730452268428,10.30457415,166.25,166.2,10.30457415]
[1730452268626,6.0153,166.24,166.2,10.30457415]
[1730452268872,6.0153,166.24,166.21,10.30457415]
[1730452270023,10.91611085,166.26,166.21,10.30457415]
[1730452270424,6.015,166.25,166.21,10.30457415]
[1730452272130,16.31957415,166.25,166.2,10.30457415]
[1730452272540,10.30457415,166.24,166.19,10.30457415]
[1730452273540,16.32027415,166.24,166.19,10.30457415]
[1730452274931,10.30457415,166.25,166.2,10.30457415]
[1730452275125,10.30457415,166.24,166.19,10.30457415]
[1730452275933,16.32027415,166.24,166.19,10.30457415]
[1730452279737,6.015,166.25,166.21,10.30457415]
[1730452279931,6.015,166.25,166.22,10.30457415]
[1730452280141,6.015,166.25,166.21,10.30457415]
[1730452280639,10.91611085,166.26,166.21,10.30457415]
[1730452280836,6.6263367,166.26,166.22,10.30457415]
[1730452281152,0.6115367,166.26,166.22,10.30457415]
[1730452281854,0.6115367,166.26,166.22,16.32037415]
[1730452284351,0.6115367,166.26,166.23,10.30457415]
[1730452286272,0.6115367,166.26,166.21,6.0161]
[1730452286273,0.6115367,166.26,166.22,10.30457415]
[1730452287259,0.6115367,166.26,166.24,10.30457415]
[1730452287747,0.6115367,166.26,166.25,10.30457415]
[1730452295273,0.6115367,166.26,166.25,10.43006415]
[1730452295469,0.6115367,166.26,166.25,40.47292815]
[1730452300071,0.6115367,166.26,166.25,10.30457415]
[1730452300655,0.6115367,166.26,166.24,10.30457415]
[1730452301474,0.6115367,166.26,166.25,10.30457415]
[1730452302153,0.6115367,166.26,166.25,16.44506415]
[1730452309290,0.6115367,166.26,166.25,10.30457415]
[1730452309579,0.6115367,166.26,166.24,10.30457415]
[1730452311168,0.6115367,166.26,166.25,10.30457415]
[1730452312287,0.6115367,166.26,166.25,16.44506415]
[1730452320579,0.6115367,166.26,166.25,40.47292815]
[1730452324272,0.6115367,166.26,166.25,16.31957415]
[1730452324584,0.6115367,166.26,166.25,10.30457415]
[1730452327887,0.6115367,166.26,166.25,16.31957415]
[1730452331695,0.6115367,166.26,166.24,10.30457415]
[1730452333789,0.6115367,166.26,166.25,10.30457415]
[1730452336475,0.6115367,166.26,166.25,16.44506415]
[1730452342687,0.6115367,166.26,166.25,16.31957415]
[1730452343601,0.6115367,166.26,166.25,10.30457415]
[1730452344003,0.6115367,166.26,166.24,16.31987415]
[1730452344587,0.6115367,166.26,166.25,10.30457415]
[1730452345891,0.6115367,166.26,166.25,16.31957415]
[1730452346388,0.6115367,166.26,166.25,16.44506415]
[1730452349995,0.6115367,166.26,166.25,16.31957415]
[1730452350401,0.6115367,166.26,166.25,10.30457415]
[1730452354809,0.6115367,166.26,166.25,16.31957415]
[1730452359605,0.6115367,166.26,166.23,25.34397415]
[1730452359813,0.6115367,166.26,166.23,31.35937415]
[1730452360200,0.6115367,166.26,166.24,10.30457415]
[1730452361608,0.6115367,166.26,166.25,10.30457415]
[1730452368221,0.6115367,166.26,166.24,10.30457415]
[1730452370024,0.6115367,166.26,166.24,16.31977415]
[1730452371003,0.6115367,166.26,166.25,10.30457415]
[1730452374628,0.6115367,166.26,166.25,16.31957415]
[1730452375610,0.6115367,166.26,166.25,16.44506415]
[1730452378427,0.6115367,166.26,166.25,10.30457415]
[1730452378635,0.6115367,166.26,166.24,16.31987415]
[1730452380122,0.6115367,166.26,166.25,10.30457415]
[1730452385543,0.6115367,166.26,166.21,36.36252607]
[1730452385544,0.6115367,166.26,166.22,10.30457415]
[1730452385917,6.6262367,166.26,166.22,10.30457415]
[1730452386557,6.6262367,166.26,166.21,6.0161]
[1730452386558,16.93081085,166.26,166.21,10.30457415]
[1730452386731,10.30457415,166.25,166.2,10.30457415]
[1730452387335,6.6262367,166.26,166.22,10.30457415]